[Event "Chinese Championship-B Men 2024"]
[Site "Liaocheng"]
[Date "2024.04.24"]
[Round "3.5"]
[White "Wu, Yixing"]
[Black "Yao, Yuhang"]
[Result "1-0"]
[WhiteElo "2348"]
[BlackElo "1887"]
[PlyCount "101"]
[EventDate "2024.04.24"]
[EventType "swiss"]
[EventCountry "CHN"]
[TimeControl "5400+30"]

1. Nf3 {[%emt 0:00:05]} Nf6 {[%emt 0:00:03]} 2. c4 {[%emt 0:00:07]} g6 {[%emt 0:00:02]} 3. Nc3 {[%emt 0:00:57]} Bg7 {[%emt 0:00:02]} 4. g3 {[%emt 0:00:38]} O-O {[%emt 0:00:06]} 5. Bg2 {[%emt 0:00:15]} d6 {[%emt 0:00:03]} 6. d4 {[%emt 0:00:11]} Nbd7 {[%emt 0:00:03]} 7. O-O {[%emt 0:00:11]} e5 {[%emt 0:00:02]} 8. e4 {[%emt 0:00:08]} c6 {[%emt 0:00:05]} 9. Re1 {[%emt 0:00:14]} Qa5 {[%emt 0:00:55]} 10. h3 {[%emt 0:00:50]} exd4 {[%emt 0:00:06]} 11. Nxd4 {[%emt 0:00:21]} Ne5 {[%emt 0:00:03]} 12. Bf1 {[%emt 0:05:15]} Re8 {[%emt 0:00:04]} 13. Nb3 {[%emt 0:01:38]} Qc7 {[%emt 0:00:31]} 14. f4 {[%emt 0:06:35]} Ned7 {[%emt 0:00:05]} 15. Bg2 {[%emt 0:01:38]} Nb6 {[%emt 0:04:06]} 16. c5 {[%emt 0:01:31]} dxc5 {[%emt 0:00:04]} 17. Nxc5 {[%emt 0:00:10]} Nh5 {[%emt 0:00:08]} 18. Kh2 {[%emt 0:01:37]} Nd7 {[%emt 0:02:53]} 19. Nd3 {[%emt 0:05:51]} Bxc3 {[%emt 0:02:44]} 20. bxc3 {[%emt 0:00:53]} b6 {[%emt 0:10:09]} 21. c4 {[%emt 0:08:57]} c5 {[%emt 0:02:47]} 22. Bb2 {[%emt 0:00:28]} Bb7 {[%emt 0:00:39]} 23. Qd2 {[%emt 0:02:36]} Re7 {[%emt 0:05:21]} 24. Rad1 {[%emt 0:03:26]} Rf8 {[%emt 0:02:35]} 25. Qc3 {[%emt 0:02:15]} f6 {[%emt 0:00:11]} 26. Nf2 {[%emt 0:01:47]} Ng7 {[%emt 0:11:51]} 27. Ng4 {[%emt 0:00:51]} Ne8 {[%emt 0:00:32]} 28. Ne3 {[%emt 0:07:49]} Nd6 {[%emt 0:04:12]} 29. e5 {[%emt 0:05:14]} Nf7 {[%emt 0:04:18]} 30. Nd5 {[%emt 0:02:23]} Bxd5 {[%emt 0:00:05]} 31. cxd5 {[%emt 0:00:04]} fxe5 {[%emt 0:00:40]} 32. fxe5 {[%emt 0:00:02]} Rxe5 {[%emt 0:00:46]} 33. d6 {[%emt 0:01:13]} Qd8 {[%emt 0:00:41]} 34. Rxe5 {[%emt 0:09:44]} Nfxe5 {[%emt 0:02:13]} 35. Bd5+ {[%emt 0:00:07]} Kg7 {[%emt 0:00:15]} 36. Be6 {[%emt 0:16:14]} Rf2+ {[%emt 0:05:22]} 37. Kg1 {[%emt 0:00:03]} Rxb2 {[%emt 0:00:08]} 38. Qxb2 {[%emt 0:04:13]} Qf6 {[%emt 0:00:09]} 39. Qb3 {[%emt 0:00:04]} Nf3+ {[%emt 0:12:59]} 40. Kg2 {[%emt 0:00:15]} Nd4 {[%emt 0:00:16]} 41. Rxd4 {[%emt 0:00:15]} Qxd4 {[%emt 0:00:01]} 42. Bxd7 {[%emt 0:00:11]} Qd2+ {[%emt 0:01:22]} 43. Kf3 {[%emt 0:00:07]} Qxd6 {[%emt 0:00:06]} 44. Bb5 {[%emt 0:00:29]} Qf6+ {[%emt 0:00:37]} 45. Kg2 {[%emt 0:00:07]} Qd4 {[%emt 0:01:22]} 46. a4 {[%emt 0:00:33]} Qd2+ {[%emt 0:00:38]} 47. Kf3 {[%emt 0:00:05]} Qe1 {[%emt 0:01:13]} 48. Qe3 {[%emt 0:02:12]} Qh1+ {[%emt 0:00:19]} 49. Kf4 {[%emt 0:00:42]} Qxh3 {[%emt 0:02:09]} 50. Qe7+ {[%emt 0:00:07]} Kh6 {[%emt 0:00:06]} 51. Qf8+ {[%emt 0:00:05]} 1-0

[Event "Chinese Championship-B Men 2024"]
[Site "Liaocheng"]
[Date "2024.04.24"]
[Round "3.6"]
[White "Zhang, Di"]
[Black "Tao, Qibing"]
[Result "1-0"]
[WhiteElo "2303"]
[BlackElo "1875"]
[PlyCount "75"]
[EventDate "2024.04.24"]
[EventType "swiss"]
[EventCountry "CHN"]
[TimeControl "5400+30"]

1. e4 {[%emt 0:00:11]} d5 {[%emt 0:00:18]} 2. exd5 {[%emt 0:00:23]} Qxd5 {[%emt 0:00:21]} 3. Nc3 {[%emt 0:00:12]} Qa5 {[%emt 0:00:27]} 4. d4 {[%emt 0:00:18]} Nf6 {[%emt 0:00:12]} 5. Nf3 {[%emt 0:00:21]} c6 {[%emt 0:00:12]} 6. Bc4 {[%emt 0:00:23]} Bg4 {[%emt 0:00:23]} 7. h3 {[%emt 0:00:20]} Bh5 {[%emt 0:00:54]} 8. g4 {[%emt 0:11:50]} Bg6 {[%emt 0:00:16]} 9. Ne5 {[%emt 0:00:38]} Nbd7 {[%emt 0:00:19]} 10. Nxg6 {[%emt 0:12:07]} hxg6 {[%emt 0:00:31]} 11. Bd2 {[%emt 0:00:41]} Qb6 {[%emt 0:07:02]} 12. Qe2 {[%emt 0:00:13]} Qxd4 {[%emt 0:03:44]} 13. O-O-O {[%emt 0:00:23]} Qe5 {[%emt 0:21:05]} 14. Be3 {[%emt 0:01:23]} e6 {[%emt 0:01:14]} 15. f4 {[%emt 0:20:35]} Qa5 {[%emt 0:05:24]} 16. Bd2 {[%emt 0:00:31]} Qc5 {[%emt 0:02:10]} 17. Bb3 {[%emt 0:18:50]} O-O-O {[%emt 0:04:29]} 18. h4 {[%emt 0:03:32]} Qb6 {[%emt 0:05:10]} 19. f5 {[%emt 0:01:47]} gxf5 {[%emt 0:01:25]} 20. gxf5 {[%emt 0:00:01]} exf5 {[%emt 0:11:45]} 21. Bxf7 {[%emt 0:00:13]} Ng4 {[%emt 0:02:41]} 22. Bg5 {[%emt 0:01:37]} Ngf6 {[%emt 0:09:35]} 23. Be6 {[%emt 0:02:56]} Bb4 {[%emt 0:01:26]} 24. Bxf6 {[%emt 0:01:45]} gxf6 {[%emt 0:00:09]} 25. Rxd7 {[%emt 0:05:03]} Rxd7 {[%emt 0:00:30]} 26. Rd1 {[%emt 0:00:12]} Rhd8 {[%emt 0:00:40]} 27. Qd3 {[%emt 0:02:22]} Qc7 {[%emt 0:05:30]} 28. h5 {[%emt 0:02:32]} Bxc3 {[%emt 0:05:51]} 29. bxc3 {[%emt 0:00:22]} Qf4+ {[%emt 0:04:09]} 30. Kb1 {[%emt 0:00:36]} Qe5 {[%emt 0:02:00]} 31. Bxd7+ {[%emt 0:00:11]} Kc7 {[%emt 0:00:07]} 32. h6 {[%emt 0:01:45]} f4 {[%emt 0:00:32]} 33. h7 {[%emt 0:00:18]} Qh5 {[%emt 0:01:21]} 34. Qd6+ {[%emt 0:00:25]} Kb6 {[%emt 0:00:06]} 35. Ka1 {[%emt 0:00:38]} Ka6 {[%emt 0:03:37]} 36. Rb1 {[%emt 0:00:24]} Qa5 {[%emt 0:00:20]} 37. Qd3+ {[%emt 0:00:31]} b5 {[%emt 0:00:30]} 38. Qf3 {[%emt 0:00:12]} 1-0

[Event "Chinese Championship-B Men 2024"]
[Site "Liaocheng"]
[Date "2024.04.24"]
[Round "3.7"]
[White "Xi, Qi"]
[Black "Wang, Zihang"]
[Result "1/2-1/2"]
[WhiteElo "2217"]
[BlackElo "1846"]
[PlyCount "81"]
[EventDate "2024.04.24"]
[EventType "swiss"]
[EventCountry "CHN"]
[TimeControl "5400+30"]

1. d4 {[%emt 0:00:17]} Nf6 {[%emt 0:00:06]} 2. c4 {[%emt 0:00:06]} g6 {[%emt 0:00:15]} 3. f3 {[%emt 0:00:53]} c5 {[%emt 0:00:14]} 4. d5 {[%emt 0:00:57]} Bg7 {[%emt 0:00:46]} 5. Nh3 {[%emt 0:04:01]} b5 {[%emt 0:00:28]} 6. cxb5 {[%emt 0:05:09]} a6 {[%emt 0:00:06]} 7. bxa6 {[%emt 0:01:44]} Bxa6 {[%emt 0:07:49]} 8. Nc3 {[%emt 0:00:41]} d6 {[%emt 0:01:29]} 9. e4 {[%emt 0:04:47]} Bxf1 {[%emt 0:00:42]} 10. Rxf1 {[%emt 0:00:25]} Qb6 {[%emt 0:07:18]} 11. Qe2 {[%emt 0:08:01]} O-O {[%emt 0:07:41]} 12. Kf2 {[%emt 0:06:30]} Na6 {[%emt 0:02:00]} 13. Kg1 {[%emt 0:00:24]} Rfb8 {[%emt 0:01:20]} 14. Nf2 {[%emt 0:00:45]} Nc7 {[%emt 0:12:34]} 15. a4 {[%emt 0:05:59]} Nd7 {[%emt 0:09:35]} 16. Ra3 {[%emt 0:00:58]} Qa6 {[%emt 0:05:19]} 17. Qc2 {[%emt 0:03:57]} Qc4 {[%emt 0:14:12]} 18. Bg5 {[%emt 0:01:51]} Kf8 {[%emt 0:02:19]} 19. Bd2 {[%emt 0:01:39]} Na6 {[%emt 0:20:32]} 20. b3 {[%emt 0:02:51]} Nb4 {[%emt 0:00:10]} 21. Qc1 {[%emt 0:00:12]} Qa6 {[%emt 0:00:27]} 22. Bh6 {[%emt 0:00:33]} c4 {[%emt 0:03:50]} 23. Bxg7+ {[%emt 0:03:46]} Kxg7 {[%emt 0:00:06]} 24. Qd2 {[%emt 0:00:09]} cxb3 {[%emt 0:02:03]} 25. Rxb3 {[%emt 0:00:54]} Qc4 {[%emt 0:00:51]} 26. Rfb1 {[%emt 0:17:25]} Nc5 {[%emt 0:00:05]} 27. R3b2 {[%emt 0:00:45]} Nba6 {[%emt 0:00:56]} 28. Rxb8 {[%emt 0:02:34]} Rxb8 {[%emt 0:00:06]} 29. Rxb8 {[%emt 0:01:22]} Nxb8 {[%emt 0:00:01]} 30. Ng4 {[%emt 0:03:59]} f6 {[%emt 0:00:59]} 31. Ne3 {[%emt 0:02:08]} Qb4 {[%emt 0:00:27]} 32. Nc2 {[%emt 0:07:27]} Qb2 {[%emt 0:00:06]} 33. Nd1 {[%emt 0:00:48]} Qb6 {[%emt 0:00:42]} 34. Nde3 {[%emt 0:05:55]} Nxa4 {[%emt 0:00:33]} 35. Nd4 {[%emt 0:00:06]} Nc5 {[%emt 0:00:42]} 36. h4 {[%emt 0:00:51]} Nbd7 {[%emt 0:00:59]} 37. h5 {[%emt 0:00:35]} Ne5 {[%emt 0:00:18]} 38. Kh2 {[%emt 0:00:37]} Kf7 {[%emt 0:00:47]} 39. Nec2 {[%emt 0:02:03]} Kg7 {[%emt 0:00:23]} 40. Qd1 {[%emt 0:03:35]} Qb2 {[%emt 0:00:26]} 41. Qd2 {[%emt 0:02:17]} 1/2-1/2

[Event "Chinese Championship-B Men 2024"]
[Site "Liaocheng"]
[Date "2024.04.24"]
[Round "3.8"]
[White "Zhang, Haoxuan(Zj)"]
[Black "Chen, Hongsen"]
[Result "1/2-1/2"]
[WhiteElo "1851"]
[BlackElo "2171"]
[PlyCount "60"]
[EventDate "2024.04.24"]
[EventType "swiss"]
[EventCountry "CHN"]
[TimeControl "5400+30"]

1. e4 {[%emt 0:00:03]} e5 {[%emt 0:00:40]} 2. Nf3 {[%emt 0:00:09]} Nc6 {[%emt 0:00:04]} 3. Bc4 {[%emt 0:00:05]} Nf6 {[%emt 0:00:05]} 4. d3 {[%emt 0:00:08]} Bc5 {[%emt 0:00:05]} 5. O-O {[%emt 0:02:08]} O-O {[%emt 0:00:15]} 6. Re1 {[%emt 0:00:31]} d6 {[%emt 0:00:08]} 7. c3 {[%emt 0:00:21]} a5 {[%emt 0:00:09]} 8. h3 {[%emt 0:03:46]} h6 {[%emt 0:00:22]} 9. Nbd2 {[%emt 0:03:04]} Be6 {[%emt 0:00:21]} 10. Bb5 {[%emt 0:00:46]} Qb8 {[%emt 0:00:11]} 11. Bxc6 {[%emt 0:03:28]} bxc6 {[%emt 0:00:07]} 12. d4 {[%emt 0:02:52]} exd4 {[%emt 0:00:07]} 13. Nxd4 {[%emt 0:00:52]} Re8 {[%emt 0:15:32]} 14. Qf3 {[%emt 0:07:26]} Bxd4 {[%emt 0:07:22]} 15. cxd4 {[%emt 0:01:30]} Qb4 {[%emt 0:02:58]} 16. Qc3 {[%emt 0:01:47]} Bf5 {[%emt 0:05:26]} 17. Qxb4 {[%emt 0:07:06]} axb4 {[%emt 0:00:08]} 18. f3 {[%emt 0:00:06]} Bd7 {[%emt 0:02:36]} 19. a4 {[%emt 0:02:53]} Nd5 {[%emt 0:05:28]} 20. Nc4 {[%emt 0:01:38]} Nb6 {[%emt 0:03:47]} 21. Nxb6 {[%emt 0:01:47]} cxb6 {[%emt 0:00:06]} 22. Bf4 {[%emt 0:01:28]} c5 {[%emt 0:07:17]} 23. Bxd6 {[%emt 0:01:23]} cxd4 {[%emt 0:00:06]} 24. Red1 {[%emt 0:00:33]} Bxa4 {[%emt 0:04:28]} 25. Rxd4 {[%emt 0:00:10]} Bc6 {[%emt 0:03:37]} 26. Rc1 {[%emt 0:02:14]} Rec8 {[%emt 0:00:07]} 27. Bxb4 {[%emt 0:01:04]} Bb5 {[%emt 0:01:40]} 28. Rxc8+ {[%emt 0:00:38]} Rxc8 {[%emt 0:00:05]} 29. Bc3 {[%emt 0:00:05]} Bc4 {[%emt 0:00:25]} 30. Rd6 {[%emt 0:00:31]} b5 {[%emt 0:00:07]} 1/2-1/2

[Event "Chinese Championship-B Men 2024"]
[Site "Liaocheng"]
[Date "2024.04.24"]
[Round "3.9"]
[White "Li, Zhanjia"]
[Black "Wang, Hao B"]
[Result "1-0"]
[WhiteElo "1839"]
[BlackElo "2170"]
[PlyCount "77"]
[EventDate "2024.04.24"]
[EventType "swiss"]
[EventCountry "CHN"]
[TimeControl "5400+30"]

1. d4 {[%emt 0:00:07]} Nf6 {[%emt 0:00:10]} 2. c4 {[%emt 0:00:03]} g6 {[%emt 0:00:18]} 3. Nc3 {[%emt 0:00:10]} Bg7 {[%emt 0:00:08]} 4. e4 {[%emt 0:00:16]} d6 {[%emt 0:00:27]} 5. Bg5 {[%emt 0:01:04]} O-O {[%emt 0:00:33]} 6. Qd2 {[%emt 0:01:06]} c5 {[%emt 0:04:04]} 7. d5 {[%emt 0:00:06]} Re8 {[%emt 0:02:09]} 8. Nf3 {[%emt 0:06:48]} Nbd7 {[%emt 0:01:41]} 9. Be2 {[%emt 0:01:27]} a6 {[%emt 0:03:13]} 10. O-O {[%emt 0:01:59]} Qc7 {[%emt 0:04:02]} 11. Ne1 {[%emt 0:07:50]} Rb8 {[%emt 0:01:34]} 12. a4 {[%emt 0:00:17]} Nf8 {[%emt 0:00:59]} 13. f4 {[%emt 0:02:01]} Ng4 {[%emt 0:05:18]} 14. Bxg4 {[%emt 0:08:19]} Bxg4 {[%emt 0:00:06]} 15. f5 {[%emt 0:00:03]} f6 {[%emt 0:03:02]} 16. Be3 {[%emt 0:03:33]} Bh5 {[%emt 0:00:28]} 17. Nd3 {[%emt 0:04:44]} g5 {[%emt 0:00:20]} 18. e5 {[%emt 0:01:59]} dxe5 {[%emt 0:01:36]} 19. Nxc5 {[%emt 0:01:19]} Qc8 {[%emt 0:03:04]} 20. a5 {[%emt 0:01:32]} Rd8 {[%emt 0:04:47]} 21. N3a4 {[%emt 0:01:55]} Qc7 {[%emt 0:00:41]} 22. Nb6 {[%emt 0:02:50]} Bf7 {[%emt 0:00:06]} 23. Qc3 {[%emt 0:02:57]} h5 {[%emt 0:00:43]} 24. Ne6 {[%emt 0:03:21]} Bxe6 {[%emt 0:02:31]} 25. dxe6 {[%emt 0:00:18]} Qc6 {[%emt 0:01:19]} 26. Nd5 {[%emt 0:01:27]} Rxd5 {[%emt 0:01:38]} 27. cxd5 {[%emt 0:00:01]} Qxd5 {[%emt 0:00:06]} 28. Rfd1 {[%emt 0:01:50]} Qe4 {[%emt 0:00:20]} 29. Qd3 {[%emt 0:00:24]} Qb4 {[%emt 0:00:48]} 30. b3 {[%emt 0:01:46]} Rc8 {[%emt 0:02:38]} 31. Ra4 {[%emt 0:02:13]} Qc3 {[%emt 0:00:20]} 32. Qxc3 {[%emt 0:00:11]} Rxc3 {[%emt 0:00:05]} 33. Kf2 {[%emt 0:00:59]} Rxb3 {[%emt 0:00:23]} 34. Rd7 {[%emt 0:00:12]} Rb2+ {[%emt 0:00:05]} 35. Kf1 {[%emt 0:00:15]} Rb1+ {[%emt 0:00:22]} 36. Ke2 {[%emt 0:00:09]} Rb2+ {[%emt 0:00:10]} 37. Kd1 {[%emt 0:02:50]} Rb3 {[%emt 0:00:11]} 38. Kd2 {[%emt 0:01:42]} Rb2+ {[%emt 0:07:57]} 39. Kd3 {[%emt 0:00:25]} 1-0

[Event "Chinese Championship-B Men 2024"]
[Site "Liaocheng"]
[Date "2024.04.24"]
[Round "3.10"]
[White "Hou, Yifan b"]
[Black "Xiu, Yang"]
[Result "1-0"]
[WhiteElo "2161"]
[BlackElo "1837"]
[PlyCount "67"]
[EventDate "2024.04.24"]
[EventType "swiss"]
[EventCountry "CHN"]
[TimeControl "5400+30"]

1. d4 {[%emt 0:00:23]} Nf6 {[%emt 0:00:03]} 2. c4 {[%emt 0:00:48]} e6 {[%emt 0:00:23]} 3. Nf3 {[%emt 0:00:57]} d5 {[%emt 0:00:18]} 4. g3 {[%emt 0:00:35]} dxc4 {[%emt 0:00:12]} 5. Bg2 {[%emt 0:00:12]} Nc6 {[%emt 0:00:19]} 6. O-O {[%emt 0:03:54]} a6 {[%emt 0:02:33]} 7. Nc3 {[%emt 0:01:15]} Be7 {[%emt 0:01:46]} 8. e4 {[%emt 0:07:35]} O-O {[%emt 0:00:33]} 9. Qe2 {[%emt 0:05:53]} b5 {[%emt 0:01:58]} 10. Rd1 {[%emt 0:02:12]} Rb8 {[%emt 0:11:22]} 11. d5 {[%emt 0:01:27]} exd5 {[%emt 0:00:05]} 12. e5 {[%emt 0:00:10]} d4 {[%emt 0:00:18]} 13. exf6 {[%emt 0:00:48]} Bxf6 {[%emt 0:00:03]} 14. Ne4 {[%emt 0:00:20]} d3 {[%emt 0:01:38]} 15. Nxf6+ {[%emt 0:03:16]} Qxf6 {[%emt 0:00:05]} 16. Qe4 {[%emt 0:00:18]} Bb7 {[%emt 0:07:03]} 17. Qf4 {[%emt 0:03:34]} Nb4 {[%emt 0:03:31]} 18. Qxf6 {[%emt 0:10:31]} gxf6 {[%emt 0:00:06]} 19. Bd2 {[%emt 0:00:27]} Nc2 {[%emt 0:00:55]} 20. Rac1 {[%emt 0:00:37]} Rfe8 {[%emt 0:15:43]} 21. b3 {[%emt 0:03:06]} Bxf3 {[%emt 0:05:12]} 22. Bxf3 {[%emt 0:00:14]} Nd4 {[%emt 0:00:07]} 23. Kg2 {[%emt 0:00:36]} Ne2 {[%emt 0:04:36]} 24. Bxe2 {[%emt 0:01:40]} Rxe2 {[%emt 0:00:11]} 25. Kf3 {[%emt 0:00:31]} a5 {[%emt 0:07:14]} 26. bxc4 {[%emt 0:02:04]} b4 {[%emt 0:00:39]} 27. c5 {[%emt 0:03:22]} a4 {[%emt 0:01:33]} 28. Rb1 {[%emt 0:00:35]} b3 {[%emt 0:05:02]} 29. axb3 {[%emt 0:00:05]} axb3 {[%emt 0:00:05]} 30. Bc3 {[%emt 0:00:07]} Kg7 {[%emt 0:00:41]} 31. Rxd3 {[%emt 0:00:31]} Rc2 {[%emt 0:00:17]} 32. Rb2 {[%emt 0:00:18]} Rb5 {[%emt 0:00:52]} 33. Bd4 {[%emt 0:00:14]} Rb4 {[%emt 0:00:31]} 34. Rbxb3 {[%emt 0:00:11]} 1-0

[Event "Chinese Championship-B Men 2024"]
[Site "Liaocheng"]
[Date "2024.04.24"]
[Round "3.11"]
[White "Chen, Zimu(Js)"]
[Black "Zou, Yuxiao"]
[Result "1-0"]
[WhiteElo "2075"]
[BlackElo "1791"]
[PlyCount "101"]
[EventDate "2024.04.24"]
[EventType "swiss"]
[EventCountry "CHN"]
[TimeControl "5400+30"]

1. e4 {[%emt 0:00:06]} e6 {[%emt 0:00:28]} 2. Nf3 {[%emt 0:01:26]} d5 {[%emt 0:00:07]} 3. e5 {[%emt 0:00:04]} c5 {[%emt 0:00:11]} 4. c3 {[%emt 0:00:03]} Nc6 {[%emt 0:00:08]} 5. Na3 {[%emt 0:00:06]} Qb6 {[%emt 0:00:32]} 6. Nc2 {[%emt 0:00:05]} f6 {[%emt 0:00:52]} 7. d4 {[%emt 0:02:25]} cxd4 {[%emt 0:03:35]} 8. cxd4 {[%emt 0:01:09]} fxe5 {[%emt 0:00:09]} 9. Nxe5 {[%emt 0:00:55]} Nf6 {[%emt 0:07:19]} 10. Bd3 {[%emt 0:04:03]} Bd6 {[%emt 0:01:10]} 11. Ng4 {[%emt 0:05:41]} O-O {[%emt 0:04:43]} 12. Nxf6+ {[%emt 0:00:17]} Rxf6 {[%emt 0:00:18]} 13. O-O {[%emt 0:00:49]} Bd7 {[%emt 0:02:12]} 14. Bg5 {[%emt 0:03:56]} Rf7 {[%emt 0:00:57]} 15. b3 {[%emt 0:10:09]} Qc7 {[%emt 0:02:41]} 16. Kh1 {[%emt 0:07:58]} Bf4 {[%emt 0:05:00]} 17. Bxf4 {[%emt 0:03:14]} Qxf4 {[%emt 0:02:00]} 18. g3 {[%emt 0:06:52]} Qf3+ {[%emt 0:05:20]} 19. Qxf3 {[%emt 0:01:56]} Rxf3 {[%emt 0:00:06]} 20. Rad1 {[%emt 0:00:13]} Raf8 {[%emt 0:03:17]} 21. Kg2 {[%emt 0:01:07]} Be8 {[%emt 0:04:43]} 22. Ne1 {[%emt 0:03:44]} R3f6 {[%emt 0:01:54]} 23. Be2 {[%emt 0:04:32]} Bg6 {[%emt 0:02:06]} 24. f4 {[%emt 0:00:35]} Rc8 {[%emt 0:04:48]} 25. Kg1 {[%emt 0:02:44]} Kf7 {[%emt 0:03:51]} 26. Nf3 {[%emt 0:00:38]} Ke7 {[%emt 0:02:51]} 27. Rfe1 {[%emt 0:03:53]} a6 {[%emt 0:02:45]} 28. Rc1 {[%emt 0:05:51]} Rff8 {[%emt 0:01:07]} 29. Kf2 {[%emt 0:01:50]} Nb4 {[%emt 0:06:33]} 30. Bf1 {[%emt 0:07:43]} h6 {[%emt 0:02:22]} 31. Nh4 {[%emt 0:02:24]} Be4 {[%emt 0:01:05]} 32. a3 {[%emt 0:01:29]} Na2 {[%emt 0:06:53]} 33. Rc5 {[%emt 0:01:24]} Rxc5 {[%emt 0:03:04]} 34. dxc5 {[%emt 0:00:05]} Rc8 {[%emt 0:01:10]} 35. b4 {[%emt 0:00:07]} a5 {[%emt 0:01:32]} 36. Ra1 {[%emt 0:00:17]} Nc3 {[%emt 0:00:23]} 37. Ke3 {[%emt 0:00:56]} Ra8 {[%emt 0:04:21]} 38. b5 {[%emt 0:00:53]} g5 {[%emt 0:00:46]} 39. Kd4 {[%emt 0:01:17]} Nxb5+ {[%emt 0:01:19]} 40. Bxb5 {[%emt 0:00:06]} gxh4 {[%emt 0:00:05]} 41. g4 {[%emt 0:00:05]} Rf8 {[%emt 0:01:55]} 42. Rf1 {[%emt 0:00:55]} h3 {[%emt 0:01:07]} 43. Rf2 {[%emt 0:00:57]} Rg8 {[%emt 0:01:13]} 44. Be2 {[%emt 0:00:06]} Kd7 {[%emt 0:01:26]} 45. Bd1 {[%emt 0:00:54]} Rc8 {[%emt 0:03:18]} 46. Rb2 {[%emt 0:00:35]} e5+ {[%emt 0:04:55]} 47. fxe5 {[%emt 0:00:07]} Kc7 {[%emt 0:01:15]} 48. Rf2 {[%emt 0:01:24]} Rg8 {[%emt 0:02:00]} 49. Rf7+ {[%emt 0:00:25]} Kc8 {[%emt 0:00:35]} 50. e6 {[%emt 0:01:02]} h5 {[%emt 0:01:40]} 51. e7 {[%emt 0:00:30]} 1-0

[Event "Chinese Championship-B Men 2024"]
[Site "Liaocheng"]
[Date "2024.04.24"]
[Round "3.14"]
[White "Xie, Jianjun"]
[Black "Liu, Haoling"]
[Result "0-1"]
[WhiteElo "2384"]
[BlackElo "1772"]
[PlyCount "64"]
[EventDate "2024.04.24"]
[EventType "swiss"]
[EventCountry "CHN"]
[TimeControl "5400+30"]

1. e4 {[%emt 0:01:05]} c5 {[%emt 0:00:37]} 2. d4 {[%emt 0:00:13]} cxd4 {[%emt 0:00:12]} 3. c3 {[%emt 0:00:02]} Nf6 {[%emt 0:00:35]} 4. e5 {[%emt 0:00:10]} Nd5 {[%emt 0:00:09]} 5. Nf3 {[%emt 0:00:11]} Nc6 {[%emt 0:00:27]} 6. Bc4 {[%emt 0:05:04]} Nb6 {[%emt 0:02:16]} 7. Bb3 {[%emt 0:00:01]} d5 {[%emt 0:01:55]} 8. exd6 {[%emt 0:00:07]} Qxd6 {[%emt 0:00:10]} 9. O-O {[%emt 0:05:36]} Be6 {[%emt 0:02:21]} 10. Bxe6 {[%emt 0:12:21]} Qxe6 {[%emt 0:00:11]} 11. Nxd4 {[%emt 0:00:03]} Nxd4 {[%emt 0:00:11]} 12. Qxd4 {[%emt 0:01:35]} Rd8 {[%emt 0:09:47]} 13. Qh4 {[%emt 0:09:59]} Qe2 {[%emt 0:06:09]} 14. Nd2 {[%emt 0:06:28]} Rxd2 {[%emt 0:00:24]} 15. Bxd2 {[%emt 0:00:09]} Qxd2 {[%emt 0:00:09]} 16. Rfd1 {[%emt 0:00:17]} Qh6 {[%emt 0:01:44]} 17. Qb4 {[%emt 0:22:15]} Qc6 {[%emt 0:12:40]} 18. Qa5 {[%emt 0:01:40]} a6 {[%emt 0:07:20]} 19. Rd4 {[%emt 0:01:57]} e6 {[%emt 0:04:58]} 20. Qe5 {[%emt 0:03:53]} f6 {[%emt 0:12:43]} 21. Qg3 {[%emt 0:03:13]} g6 {[%emt 0:01:44]} 22. h4 {[%emt 0:01:33]} Bc5 {[%emt 0:02:33]} 23. Rd3 {[%emt 0:06:41]} Kf7 {[%emt 0:32:45]} 24. Rad1 {[%emt 0:17:57]} Be7 {[%emt 0:00:30]} 25. b3 {[%emt 0:00:30]} Rc8 {[%emt 0:00:30]} 26. c4 {[%emt 0:00:30]} Qc7 {[%emt 0:00:00]} 27. Qg4 {[%emt 0:00:30]} h5 {[%emt 0:00:00]} 28. Qf3 {[%emt 0:00:00]} Qc6 {[%emt 0:01:30]} 29. Qxc6 {[%emt 0:00:00]} Rxc6 {[%emt 0:00:00]} 30. g3 {[%emt 0:00:00]} e5 {[%emt 0:00:00]} 31. f3 {[%emt 0:00:00]} Bc5+ {[%emt 0:00:00]} 32. Kf1 {[%emt 0:00:00]} Bd4 {[%emt 0:00:00]} 0-1

[Event "Chinese Championship-B Men 2024"]
[Site "Liaocheng"]
[Date "2024.04.24"]
[Round "3.15"]
[White "Xia, Jinnan"]
[Black "Jiang, Qinyu"]
[Result "1-0"]
[WhiteElo "1819"]
[BlackElo "2319"]
[PlyCount "119"]
[EventDate "2024.04.24"]
[EventType "swiss"]
[EventCountry "CHN"]
[TimeControl "5400+30"]

1. d4 {[%emt 0:00:02]} Nf6 {[%emt 0:02:04]} 2. c4 {[%emt 0:00:06]} e6 {[%emt 0:00:05]} 3. Nf3 {[%emt 0:00:04]} d5 {[%emt 0:00:04]} 4. Nc3 {[%emt 0:00:04]} dxc4 {[%emt 0:00:03]} 5. Bg5 {[%emt 0:05:42]} a6 {[%emt 0:03:03]} 6. a4 {[%emt 0:01:14]} c5 {[%emt 0:04:32]} 7. e3 {[%emt 0:01:47]} Nc6 {[%emt 0:00:55]} 8. dxc5 {[%emt 0:04:26]} Qxd1+ {[%emt 0:04:39]} 9. Rxd1 {[%emt 0:00:13]} Bxc5 {[%emt 0:00:03]} 10. Bxc4 {[%emt 0:00:08]} Bb4 {[%emt 0:04:00]} 11. Nd2 {[%emt 0:12:01]} Bd7 {[%emt 0:05:34]} 12. Bxf6 {[%emt 0:02:18]} gxf6 {[%emt 0:00:02]} 13. Nde4 {[%emt 0:00:07]} Ke7 {[%emt 0:04:14]} 14. O-O {[%emt 0:28:40]} f5 {[%emt 0:22:49]} 15. Ng3 {[%emt 0:17:07]} Bxc3 {[%emt 0:10:59]} 16. bxc3 {[%emt 0:00:10]} Na5 {[%emt 0:00:01]} 17. Be2 {[%emt 0:06:01]} Rac8 {[%emt 0:00:45]} 18. c4 {[%emt 0:03:46]} Nxc4 {[%emt 0:01:41]} 19. Rd4 {[%emt 0:00:20]} Na5 {[%emt 0:00:36]} 20. e4 {[%emt 0:03:46]} fxe4 {[%emt 0:00:31]} 21. Rxe4 {[%emt 0:02:01]} Rc5 {[%emt 0:00:58]} 22. f4 {[%emt 0:01:17]} Bc6 {[%emt 0:01:23]} 23. Rb4 {[%emt 0:00:14]} Rd8 {[%emt 0:00:12]} 24. f5 {[%emt 0:00:36]} Rd2 {[%emt 0:00:41]} 25. f6+ {[%emt 0:01:23]} Ke8 {[%emt 0:01:04]} 26. Rg4 {[%emt 0:02:42]} Rcc2 {[%emt 0:00:01]} 27. Rg8+ {[%emt 0:00:42]} Kd7 {[%emt 0:00:00]} 28. Rf8 {[%emt 0:03:04]} Rxe2 {[%emt 0:03:55]} 29. Nxe2 {[%emt 0:00:10]} Rxe2 {[%emt 0:00:03]} 30. Rxf7+ {[%emt 0:00:03]} Ke8 {[%emt 0:00:04]} 31. Rg7 {[%emt 0:00:13]} Kf8 {[%emt 0:00:01]} 32. f7 {[%emt 0:01:23]} Rxg2+ {[%emt 0:00:25]} 33. Rxg2 {[%emt 0:00:03]} Bxg2 {[%emt 0:00:06]} 34. Kxg2 {[%emt 0:00:01]} Nc4 {[%emt 0:00:05]} 35. Kg3 {[%emt 0:02:08]} Nd6 {[%emt 0:00:11]} 36. Kf4 {[%emt 0:01:14]} Kxf7 {[%emt 0:01:12]} 37. Ke5+ {[%emt 0:00:33]} Ke7 {[%emt 0:00:02]} 38. Kd4 {[%emt 0:00:22]} b5 {[%emt 0:00:12]} 39. Ra1 {[%emt 0:01:38]} bxa4 {[%emt 0:00:56]} 40. Rxa4 {[%emt 0:00:05]} Kf6 {[%emt 0:00:04]} 41. Rxa6 {[%emt 0:00:20]} Nf5+ {[%emt 0:00:15]} 42. Ke4 {[%emt 0:00:07]} h6 {[%emt 0:00:01]} 43. Rb6 {[%emt 0:00:50]} Ne7 {[%emt 0:00:24]} 44. Rb1 {[%emt 0:00:14]} Ng6 {[%emt 0:03:44]} 45. Rf1+ {[%emt 0:00:48]} Kg5 {[%emt 0:00:02]} 46. Rg1+ {[%emt 0:00:34]} Kf6 {[%emt 0:00:01]} 47. Rg2 {[%emt 0:00:17]} h5 {[%emt 0:00:10]} 48. Rf2+ {[%emt 0:00:31]} Kg5 {[%emt 0:00:02]} 49. Rg2+ {[%emt 0:00:07]} Kf6 {[%emt 0:00:00]} 50. Rg1 {[%emt 0:00:46]} Kg7 {[%emt 0:04:13]} 51. Rg5 {[%emt 0:00:54]} Kh6 {[%emt 0:00:59]} 52. Ra5 {[%emt 0:00:10]} h4 {[%emt 0:00:51]} 53. Ra6 {[%emt 0:01:01]} Kg5 {[%emt 0:02:37]} 54. Rxe6 {[%emt 0:00:22]} Nf4 {[%emt 0:00:04]} 55. Re8 {[%emt 0:00:42]} Ng6 {[%emt 0:00:04]} 56. h3 {[%emt 0:00:27]} Kf6 {[%emt 0:00:01]} 57. Ra8 {[%emt 0:00:27]} Kg5 {[%emt 0:00:20]} 58. Ra5+ {[%emt 0:00:16]} Kf6 {[%emt 0:00:06]} 59. Kf3 {[%emt 0:00:10]} Ne5+ {[%emt 0:00:10]} 60. Kf4 {[%emt 0:00:08]} 1-0